bitfinex-derivatives/quotes_BTCF0:USTF0_20241019
["timestamp","ask_amount","ask_price","bid_price","bid_amount"]
[1729380266175,0.07361436,68442.0,68441.0,0.29384034]
[1729380268078,0.07361436,68442.0,68441.0,0.28584034]
[1729380277475,0.031,68442.0,68441.0,0.28584034]
[1729380278089,0.07354203,68442.0,68441.0,0.28584034]
[1729380283479,0.07354203,68442.0,68441.0,0.27784034]
[1729380284795,0.07348293,68442.0,68441.0,0.27784034]
[1729380291705,0.031,68442.0,68441.0,0.27784034]
[1729380299010,0.031,68442.0,68441.0,0.26984034]
[1729380301807,0.07350489,68442.0,68441.0,0.26984034]
[1729380302816,0.031,68442.0,68441.0,0.26984034]
[1729380308110,0.07351387,68442.0,68441.0,0.26984034]
[1729380310517,0.07345989,68442.0,68441.0,0.26984034]
[1729380312012,0.031,68442.0,68441.0,0.26984034]
[1729380314315,0.3608,68446.0,68441.0,0.22058134]
[1729380314515,0.3608,68446.0,68442.0,0.073058]
[1729380314817,0.3608,68446.0,68445.0,0.0002]
[1729380318116,0.40335311,68446.0,68445.0,0.0002]
[1729380324324,0.40335311,68446.0,68445.0,0.073255]
[1729380324526,0.40335311,68446.0,68445.0,0.29258087]
[1729380325032,0.40352779,68446.0,68445.0,0.29258087]
[1729380325237,0.3608,68446.0,68445.0,0.29258087]
[1729380325428,0.3608,68460.0,68445.0,0.21952587]
[1729380325624,0.0427595,68455.0,68453.0,0.073046]
[1729380325832,0.0427595,68454.0,68453.0,0.073046]
[1729380326027,0.0278786,68456.0,68454.0,0.21811799]
[1729380326227,0.04289808,68455.0,68453.0,0.29116399]
[1729380326433,0.00219177,68456.0,68453.0,0.073046]
[1729380326733,0.00219177,68456.0,68454.0,0.22048491]
[1729380326734,0.04284752,68455.0,68454.0,0.22048491]
[1729380327319,0.04266834,68455.0,68448.0,0.073051]
[1729380327531,0.0002,68455.0,68448.0,0.073051]
[1729380327735,0.04263979,68454.0,68449.0,0.22042346]
[1729380327936,0.0002,68455.0,68449.0,0.22042346]
[1729380328123,0.0002,68455.0,68454.0,0.0002]
[1729380328519,0.04283254,68455.0,68454.0,0.0002]
[1729380329236,0.0002,68455.0,68454.0,0.0002]
[1729380329736,0.0002,68455.0,68450.0,0.073049]
[1729380330136,0.0002,68455.0,68445.0,0.0002]
[1729380330137,0.0002,68455.0,68451.0,0.21898186]
[1729380330438,0.0002,68455.0,68451.0,0.073048]
[1729380333129,0.0002,68455.0,68445.0,0.0002]
[1729380333328,0.04275852,68454.0,68452.0,0.073046]
[1729380333540,0.04275852,68453.0,68452.0,0.073046]
[1729380339036,0.04274798,68453.0,68452.0,0.073047]
[1729380339235,0.04274798,68453.0,68452.0,0.099277]
[1729380340341,0.0002,68455.0,68452.0,0.02623]
[1729380340542,0.04275598,68454.0,68453.0,0.073045]
[1729380341344,0.0002,68455.0,68454.0,0.073045]
[1729380341636,0.0002,68455.0,68454.0,0.073245]
[1729380342637,0.0002,68455.0,68454.0,0.29301751]
[1729380344936,0.0002,68455.0,68454.0,0.28501751]
[1729380348544,0.0002,68455.0,68454.0,0.065245]
[1729380350348,0.04297431,68455.0,68454.0,0.065245]
[1729380355544,0.04992978,68455.0,68454.0,0.065245]
[1729380355743,0.09270409,68455.0,68454.0,0.065245]
[1729380360547,0.09270409,68455.0,68454.0,0.057245]
[1729380361559,0.09257635,68455.0,68454.0,0.057245]
[1729380362451,0.04294611,68455.0,68454.0,0.057245]
[1729380365954,0.04294611,68455.0,68454.0,0.27606578]
[1729380365955,0.0002,68455.0,68454.0,0.27606578]
[1729380368851,0.04311998,68455.0,68454.0,0.27606578]
[1729380374058,0.04316159,68455.0,68454.0,0.27606578]
[1729380375756,0.04316159,68455.0,68454.0,0.26806578]
[1729380378754,0.00024161,68455.0,68454.0,0.26806578]
[1729380380159,0.07328561,68455.0,68454.0,0.0002]
[1729380380762,0.11607735,68455.0,68454.0,0.0002]
[1729380382051,0.1161216,68455.0,68454.0,0.0002]
[1729380383768,0.1161216,68455.0,68454.0,0.073245]
[1729380383961,0.0430776,68455.0,68454.0,0.073245]
[1729380385257,0.1161216,68455.0,68454.0,0.0002]
[1729380385463,0.07328561,68455.0,68454.0,0.0002]
[1729380386365,0.11597844,68455.0,68454.0,0.0002]
[1729380386852,0.1162149,68455.0,68454.0,0.0002]
[1729380391063,0.0431709,68455.0,68453.0,0.073046]
[1729380391269,0.04292929,68454.0,68453.0,0.073046]
[1729380391775,0.04289651,68454.0,68453.0,0.073046]
[1729380395368,0.00024161,68455.0,68454.0,0.073045]
[1729380395571,0.04325224,68455.0,68454.0,0.073245]
[1729380401480,0.04322352,68455.0,68454.0,0.073245]
[1729380406081,0.00024161,68455.0,68454.0,0.073245]
[1729380406279,0.00024161,68455.0,68454.0,0.065245]
[1729380406586,0.04320387,68455.0,68454.0,0.065245]
[1729380411079,0.04317344,68455.0,68454.0,0.0002]
[1729380411579,0.40397344,68455.0,68454.0,0.0002]
[1729380411779,0.04317344,68455.0,68454.0,0.0002]
[1729380411975,0.40397344,68455.0,68454.0,0.0002]
[1729380412786,0.04317344,68455.0,68454.0,0.0002]
[1729380412975,0.40397344,68455.0,68454.0,0.0002]
[1729380414682,0.40397344,68455.0,68454.0,0.073245]
[1729380416589,0.04317344,68455.0,68454.0,0.073245]
[1729380416789,0.40397344,68455.0,68454.0,0.073245]
[1729380417480,0.04317344,68455.0,68454.0,0.073245]
[1729380417977,0.40397344,68455.0,68454.0,0.073245]
[1729380418982,0.04317344,68455.0,68454.0,0.073245]
[1729380419183,0.40397344,68455.0,68454.0,0.073245]
[1729380421590,0.40397344,68455.0,68448.0,0.02641705]
[1729380421783,0.3608,68449.0,68445.0,0.0002]
[1729380421988,0.0328,68448.0,68445.0,0.0002]
[1729380422187,0.0328,68448.0,68447.0,0.073052]
[1729380423481,0.07524869,68448.0,68447.0,0.073052]
[1729380423986,0.07524879,68448.0,68447.0,0.073052]
[1729380425391,0.0328,68448.0,68447.0,0.073052]
[1729380425695,0.07523538,68448.0,68447.0,0.073052]
[1729380426088,0.0328,68448.0,68447.0,0.073052]
[1729380431188,0.3608,68449.0,68448.0,0.073051]
[1729380431389,0.3608,68449.0,68448.0,0.073251]
[1729380431598,0.3608,68449.0,68448.0,0.29336759]
[1729380434896,0.0002,68452.0,68448.0,0.22031659]
[1729380435099,0.0002,68452.0,68451.0,0.073248]
[1729380437508,0.0002,68452.0,68451.0,0.065248]
[1729380440703,0.0002,68452.0,68451.0,0.2852296]
[1729380444110,0.0002,68452.0,68451.0,0.30785388]
[1729380447210,0.0429859,68452.0,68451.0,0.30785388]
[1729380448111,0.04302708,68452.0,68451.0,0.30785388]
[1729380449901,0.0002,68455.0,68454.0,0.073045]
[1729380450213,0.0002,68455.0,68454.0,0.29348711]
[1729380451405,0.0002,68455.0,68454.0,0.073245]
[1729380452303,0.04317792,68455.0,68454.0,0.073245]
[1729380452616,0.04317792,68455.0,68454.0,0.065245]
[1729380453511,0.0002,68455.0,68454.0,0.065245]
[1729380456013,0.04310766,68455.0,68454.0,0.065245]
[1729380456212,0.0002,68455.0,68454.0,0.065245]
[1729380458111,0.04307068,68455.0,68454.0,0.065245]
[1729380458816,0.0002,68455.0,68454.0,0.065245]
[1729380459712,0.04308237,68455.0,68454.0,0.065245]
[1729380460023,0.0002,68455.0,68454.0,0.065245]
[1729380460410,0.04309345,68455.0,68454.0,0.065245]
[1729380460724,0.04309345,68455.0,68454.0,0.0002]
[1729380460725,0.0002,68455.0,68454.0,0.0002]
[1729380460913,0.434044,68455.0,68454.0,0.0002]
[1729380461117,0.073047,68452.0,68451.0,0.0002]
[1729380461423,0.073047,68452.0,68448.0,0.0002]
[1729380461424,0.073048,68451.0,68448.0,0.0002]
[1729380461612,0.3608,68449.0,68448.0,0.0002]
[1729380461815,0.45304917,68449.0,68448.0,0.0002]
[1729380462019,0.48334917,68449.0,68448.0,0.0002]
[1729380462522,0.43357332,68449.0,68448.0,0.0002]
[1729380463022,0.4828725,68449.0,68448.0,0.0002]
[1729380463613,0.4828725,68449.0,68437.0,0.433863]
[1729380463614,0.073056,68444.0,68437.0,0.433863]
[1729380463814,0.3608,68442.0,68438.0,0.073061]
[1729380464111,0.04247332,68441.0,68432.0,0.4151171]
[1729380464314,0.3608,68435.0,68432.0,0.4171171]
[1729380464510,0.3608,68435.0,68432.0,0.4901851]
[1729380464511,0.0325,68434.0,68432.0,0.4901851]
[1729380464722,0.0325,68434.0,68433.0,0.07525876]
[1729380464924,0.07442498,68434.0,68433.0,0.07525876]
[1729380465314,0.0325,68434.0,68433.0,0.07525876]
[1729380466828,0.0654,68434.0,68433.0,0.07525876]
[1729380467926,0.0654,68434.0,68433.0,0.06725876]
[1729380483237,0.0654,68434.0,68433.0,0.05925876]
[1729380488135,0.08763236,68434.0,68433.0,0.05925876]
[1729380491643,0.12971626,68434.0,68433.0,0.05925876]
[1729380491846,0.20278226,68434.0,68433.0,0.05925876]
[1729380492749,0.12971626,68434.0,68432.0,0.4171171]
[1729380492953,0.1151509,68433.0,68432.0,0.4151171]
[1729380495044,0.073073,68428.0,68426.0,0.073074]
[1729380495248,0.073076,68425.0,68423.0,0.073078]
[1729380495549,0.0302,68424.0,68423.0,0.073078]
[1729380495853,0.07173373,68424.0,68419.0,0.00219202]
[1729380496044,0.3608,68420.0,68419.0,0.00219202]
[1729380496236,0.4750595,68420.0,68419.0,0.00219202]
[1729380496545,0.5050595,68420.0,68419.0,0.00219202]
[1729380498648,0.5050595,68420.0,68417.0,0.06727602]
[1729380498949,0.073083,68419.0,68417.0,0.06727602]
[1729380500552,0.41292515,68420.0,68412.0,0.38312432]
[1729380500748,0.073086,68416.0,68413.0,0.073089]
[1729380500940,0.073086,68416.0,68405.0,0.04379543]
[1729380500941,0.163246,68416.0,68405.0,0.04379543]
[1729380501138,0.163246,68416.0,68414.0,0.073087]
[1729380502348,0.3608,68415.0,68414.0,0.073087]
[1729380506759,0.073088,68414.0,68409.0,0.073093]
[1729380507157,0.103289,68413.0,68404.0,0.3608]
[1729380507354,0.073291,68411.0,68410.0,0.073092]
[1729380508156,0.073291,68411.0,68404.0,0.3608]
[1729380508157,0.0002,68411.0,68404.0,0.3608]
[1729380508356,0.0002,68411.0,68403.0,0.00219258]
[1729380508357,0.3608,68408.0,68403.0,0.00219258]
[1729380508658,0.12226,68407.0,68403.0,0.07529158]
[1729380508848,0.073096,68406.0,68403.0,0.07529158]
[1729380509456,0.073096,68406.0,68405.0,0.073097]
[1729380514155,0.073096,68406.0,68405.0,0.065097]
[1729380519571,0.163216,68406.0,68405.0,0.065097]
[1729380523274,0.073096,68406.0,68405.0,0.065097]
[1729380523469,0.163216,68406.0,68405.0,0.065097]
[1729380529478,0.163216,68406.0,68405.0,0.058097]
[1729380544791,0.163216,68406.0,68405.0,0.050097]
[1729380547690,0.09016,68406.0,68405.0,0.073097]
[1729380548886,0.0321,68407.0,68405.0,0.073097]
[1729380549087,0.09016,68406.0,68405.0,0.073097]
[1729380551197,0.105195,68407.0,68405.0,0.073097]
[1729380551493,0.09016,68406.0,68405.0,0.073097]
[1729380552399,0.361,68410.0,68403.0,0.00219258]
[1729380552583,0.04071207,68409.0,68403.0,0.00219258]
[1729380552784,0.017066,68408.0,68403.0,0.00219258]
[1729380553593,0.017066,68408.0,68407.0,0.073095]
[1729380554396,0.09016,68409.0,68407.0,0.073095]
[1729380554601,0.524452,68410.0,68408.0,0.073294]
[1729380554799,0.524452,68410.0,68409.0,0.0002]
[1729380555100,0.56504347,68410.0,68409.0,0.0002]
[1729380555501,0.40179147,68410.0,68409.0,0.073293]
[1729380556701,0.47488347,68410.0,68409.0,0.0002]
[1729380559691,0.434292,68410.0,68409.0,0.0002]
[1729380559891,0.47475955,68410.0,68409.0,0.0002]
[1729380560308,0.073094,68409.0,68405.0,0.065497]
[1729380560597,0.073096,68407.0,68405.0,0.065497]
[1729380561390,0.073096,68406.0,68403.0,0.00219258]
[1729380561591,0.073096,68406.0,68403.0,0.07529058]
[1729380566011,0.04048141,68405.0,68403.0,0.07529058]
[1729380566306,0.073096,68406.0,68403.0,0.07529058]
[1729380566501,0.04048173,68405.0,68403.0,0.07529058]
[1729380566708,0.073096,68406.0,68403.0,0.07529058]
[1729380566903,0.04048227,68405.0,68403.0,0.07529058]
[1729380567207,0.073096,68406.0,68403.0,0.00219258]
[1729380567409,0.04047642,68405.0,68404.0,0.073098]
[1729380569412,0.073096,68406.0,68404.0,0.073098]
[1729380569612,0.073096,68406.0,68405.0,0.0002]
[1729380569803,0.11361949,68406.0,68405.0,0.0002]
[1729380573918,0.073096,68406.0,68405.0,0.0002]
[1729380575616,0.073096,68406.0,68404.0,0.068298]
[1729380577619,0.073096,68406.0,68405.0,0.073097]
[1729380582324,0.11376503,68406.0,68405.0,0.073097]
[1729380582721,0.11376475,68406.0,68405.0,0.073097]
[1729380589132,0.073096,68406.0,68405.0,0.073097]
[1729380590920,0.073096,68406.0,68405.0,0.065097]
[1729380595825,0.0002,68416.0,68405.0,1.45064411]
[1729380596029,0.0002,68416.0,68415.0,0.49258029]
[1729380596221,0.0002,68416.0,68415.0,0.434087]
[1729380596421,0.0002,68416.0,68415.0,0.69848905]
[1729380597230,0.0002,68416.0,68415.0,0.65467209]
[1729380601725,0.0002,68416.0,68415.0,0.67705636]
[1729380606338,0.0002,68416.0,68415.0,0.66905636]
[1729380615334,0.0002,68416.0,68415.0,0.31625636]
[1729380621550,0.0002,68416.0,68415.0,0.30825636]
[1729380622439,0.0002,68416.0,68415.0,0.66905636]
[1729380623231,0.0002,68416.0,68415.0,0.71287332]
[1729380623646,0.0002,68416.0,68415.0,0.66905636]
[1729380624142,0.0002,68416.0,68415.0,0.71287332]
[1729380624336,0.00219288,68425.0,68424.0,0.073077]
[1729380624533,0.00219288,68425.0,68424.0,0.434077]
[1729380624737,0.00219288,68425.0,68424.0,0.69655798]
[1729380625139,0.00219288,68425.0,68424.0,0.65274403]
[1729380625941,0.00219288,68425.0,68424.0,0.69659035]
[1729380626242,0.00219288,68425.0,68424.0,0.65274403]
[1729380627554,0.0647,68433.0,68424.0,0.57966703]
[1729380627741,0.0647,68433.0,68432.0,0.073268]
[1729380628150,0.0647,68433.0,68432.0,0.29157653]
[1729380635150,0.0647,68433.0,68432.0,0.073268]
[1729380636945,0.0647,68433.0,68432.0,0.0002]
[1729380637256,0.137767,68433.0,68432.0,0.0002]
[1729380641248,0.54014504,68433.0,68432.0,0.0002]
[1729380643550,0.54014504,68433.0,68432.0,0.073268]
[1729380649165,0.498567,68433.0,68432.0,0.073268]
[1729380649855,0.4255,68433.0,68432.0,0.073268]
[1729380650656,0.0647,68433.0,68432.0,0.073268]
[1729380652360,0.0647,68433.0,68432.0,0.065268]
[1729380655058,0.3608,68439.0,68437.0,0.073063]
[1729380655265,0.04169807,68438.0,68437.0,0.073063]
[1729380656267,0.08984747,68438.0,68437.0,0.073063]
[1729380659371,0.0897102,68438.0,68437.0,0.073063]
[1729380661264,0.04151238,68438.0,68437.0,0.073063]
[1729380662664,0.0415438,68438.0,68437.0,0.073063]
[1729380666265,0.073055,68445.0,68439.0,0.07306]
[1729380666470,0.04170587,68444.0,68436.0,0.41507057]
[1729380666668,0.04190587,68443.0,68440.0,0.07306]
[1729380666876,0.0002,68443.0,68440.0,0.07306]
[1729380667568,0.0002,68443.0,68440.0,0.06506]
[1729380668276,0.04169649,68442.0,68440.0,0.06506]
[1729380668476,0.04169649,68441.0,68440.0,0.06506]
[1729380670381,0.47555549,68441.0,68435.0,0.073065]
[1729380670571,0.07349649,68440.0,68435.0,0.073065]
[1729380670775,0.04169649,68439.0,68435.0,0.073065]
[1729380670972,0.04169649,68438.0,68430.0,0.07307]
[1729380671174,0.3608,68435.0,68431.0,0.073069]
[1729380671380,0.04169649,68434.0,68431.0,0.073069]
[1729380671577,0.04130684,68433.0,68431.0,0.073069]
[1729380671783,0.04130684,68432.0,68431.0,0.073069]
[1729380672184,0.08253666,68432.0,68431.0,0.073069]
[1729380672383,0.04122982,68432.0,68431.0,0.073069]
[1729380672681,0.0304,68433.0,68431.0,0.073069]
[1729380672886,0.0304,68433.0,68432.0,0.0002]
[1729380673083,0.0304,68433.0,68432.0,0.073268]
[1729380675684,0.0716992,68433.0,68432.0,0.073268]
[1729380679184,0.103467,68433.0,68432.0,0.0002]
[1729380679380,0.103467,68433.0,68427.0,0.073073]
[1729380679381,0.073072,68429.0,68427.0,0.073073]
[1729380679586,0.40213885,68428.0,68427.0,0.073073]
[1729380679783,0.43383885,68428.0,68427.0,0.073073]
[1729380680889,0.3925,68428.0,68427.0,0.073073]
[1729380681090,0.43367579,68428.0,68427.0,0.073073]
[1729380682192,0.07287579,68428.0,68427.0,0.073073]
[1729380682395,0.0317,68428.0,68427.0,0.073073]
[1729380682687,0.07287766,68428.0,68427.0,0.073073]
[1729380683087,0.07287766,68428.0,68427.0,0.065073]
[1729380684390,0.0317,68428.0,68427.0,0.065073]
[1729380692689,0.0002,68434.0,68427.0,0.58093198]
[1729380692895,0.0002,68434.0,68433.0,0.434067]
[1729380693100,1e-06,68434.0,68433.0,0.47786335]
[1729380693394,1e-06,68434.0,68433.0,0.73088603]
[1729380694191,1e-06,68434.0,68433.0,0.68709898]
[1729380698205,1e-06,68434.0,68433.0,0.70982953]
[1729380698391,1e-06,68434.0,68433.0,0.70182953]
[1729380704904,1e-06,68434.0,68433.0,0.426067]
[1729380706907,1e-06,68434.0,68433.0,0.065267]
[1729380713811,1e-06,68434.0,68433.0,0.057267]
[1729380717718,0.360801,68434.0,68433.0,0.057267]
[1729380718420,1e-06,68434.0,68433.0,0.057267]
[1729380718613,0.360801,68434.0,68433.0,0.057267]
[1729380719215,1e-06,68434.0,68433.0,0.057267]
[1729380719414,0.360801,68434.0,68433.0,0.057267]
[1729380720124,1.051401,68434.0,68433.0,0.073267]
[1729380720308,0.451401,68434.0,68433.0,0.073267]
[1729380722919,0.360801,68434.0,68433.0,0.073267]
[1729380723423,0.40209711,68434.0,68433.0,0.073267]
[1729380724424,0.360801,68434.0,68433.0,0.073267]
[1729380729111,0.360801,68434.0,68433.0,0.065267]
[1729380733311,0.40214058,68434.0,68433.0,0.065267]
[1729380737716,0.40216447,68434.0,68433.0,0.065267]
[1729380742625,0.40217385,68434.0,68433.0,0.065267]
[1729380744321,0.40217385,68434.0,68433.0,0.057267]
[1729380746436,0.45020605,68434.0,68433.0,0.057267]
[1729380751540,0.3608,68450.0,68441.0,0.073059]
[1729380751734,0.3608,68450.0,68441.0,0.511579]
[1729380751935,0.3608,68450.0,68441.0,1.33110697]
[1729380752537,0.0021918,68455.0,68442.0,0.43832]
[1729380752727,0.0021918,68455.0,68441.0,1.18052797]
[1729380752728,0.0021918,68455.0,68454.0,0.0002]
[1729380758338,0.0752358,68455.0,68454.0,0.0002]
[1729380758648,0.1065358,68455.0,68454.0,0.0002]
[1729380759844,0.1065358,68455.0,68451.0,0.065248]
[1729380760248,0.1065358,68455.0,68452.0,0.21843619]
[1729380760643,0.073045,68454.0,68452.0,0.21843619]
[1729380760948,0.073046,68453.0,68452.0,0.21843619]
[1729380761151,0.07305,68450.0,68447.0,0.00188]
[1729380761446,0.07305,68450.0,68441.0,0.361]
[1729380761641,0.0314,68449.0,68441.0,0.361]
[1729380761848,0.0002,68448.0,68445.0,0.073054]
[1729380762249,0.0002,68448.0,68446.0,0.2180671]
[1729380762451,0.0002,68448.0,68446.0,0.2911201]
[1729380762742,0.0002,68448.0,68446.0,0.073053]
[1729380762950,0.0002,68448.0,68447.0,0.29282228]
[1729380763348,0.0002,68448.0,68447.0,0.073052]
[1729380766147,0.073053,68447.0,68441.0,0.38302098]
[1729380766443,0.073053,68447.0,68444.0,0.073055]
[1729380766645,0.073053,68447.0,68442.0,0.22017481]
[1729380766843,0.073053,68447.0,68445.0,0.073054]
[1729380767047,0.073053,68447.0,68441.0,0.38302098]
[1729380767352,0.073053,68447.0,68446.0,0.073053]
[1729380774153,0.0002,68454.0,68447.0,0.43828]
[1729380774354,0.3608,68470.0,68447.0,0.43828]
[1729380774355,0.13603,68468.0,68457.0,0.073042]
[1729380774655,0.063,68468.0,68457.0,0.29176225]
[1729380774959,0.063,68468.0,68457.0,0.29196225]
[1729380775160,0.063,68468.0,68457.0,0.28396225]
[1729380775456,0.073031,68467.0,68457.0,0.28396225]
[1729380775757,0.3608,68464.0,68457.0,0.28396225]
[1729380776659,0.0304,68460.0,68457.0,0.28396225]
[1729380778765,0.0304,68460.0,68457.0,0.065242]
[1729380781760,0.0304,68460.0,68457.0,0.0002]
[1729380781947,0.361,68458.0,68457.0,0.0002]
[1729380784656,0.40251435,68458.0,68457.0,0.0002]
[1729380788162,0.45077569,68458.0,68457.0,0.0002]
[1729380788364,0.40251435,68458.0,68457.0,0.0002]
[1729380788760,1.09375765,68458.0,68453.0,0.0002]
[1729380788958,0.073045,68454.0,68453.0,0.0002]
[1729380789162,0.11460265,68454.0,68453.0,0.0002]
[1729380789362,0.71460265,68454.0,68453.0,0.0002]
[1729380789667,0.073054,68446.0,68442.0,0.073057]
[1729380789965,0.46367373,68445.0,68442.0,0.073057]
[1729380790260,0.04103745,68444.0,68442.0,0.073057]
[1729380790466,0.4226,68445.0,68441.0,0.0002]
[1729380790663,0.11405883,68444.0,68441.0,0.0002]
[1729380790965,0.04100283,68443.0,68441.0,0.0002]
[1729380791155,0.073056,68444.0,68441.0,0.0002]
[1729380791357,0.04087113,68443.0,68441.0,0.0002]
[1729380791556,0.073056,68444.0,68441.0,0.0002]
[1729380791761,0.073056,68444.0,68443.0,0.0002]
[1729380792756,0.104356,68444.0,68443.0,0.0002]
[1729380793866,0.14519627,68444.0,68443.0,0.0002]
[1729380795467,0.104356,68444.0,68443.0,0.0002]
[1729380805871,0.104356,68444.0,68441.0,0.065459]
[1729380808276,0.0313,68444.0,68442.0,0.073058]
[1729380811567,0.04085396,68443.0,68442.0,0.073058]
[1729380812079,0.0313,68444.0,68442.0,0.073058]
[1729380812375,0.0313,68444.0,68443.0,0.0002]
[1729380812579,0.07221553,68444.0,68443.0,0.0002]
[1729380814680,0.0313,68444.0,68443.0,0.0002]
[1729380815377,0.0722442,68444.0,68443.0,0.0002]
[1729380815674,0.07218742,68444.0,68443.0,0.0002]
[1729380815879,0.0313,68444.0,68443.0,0.0002]
[1729380816277,0.07227272,68444.0,68443.0,0.0002]
[1729380821189,0.07227272,68444.0,68442.0,0.065258]
[1729380821390,0.04097272,68443.0,68442.0,0.065258]
[1729380821892,0.04106532,68443.0,68442.0,0.065258]
[1729380827090,0.04106532,68443.0,68442.0,0.28467362]
[1729380830187,0.04106532,68443.0,68442.0,0.065258]
[1729380836592,0.04111922,68444.0,68442.0,0.057258]
[1729380836995,0.08886231,68444.0,68443.0,0.0002]
[1729380837707,0.04111922,68444.0,68443.0,0.0002]
[1729380840902,0.04112137,68444.0,68443.0,0.0002]
[1729380844500,0.0908,68445.0,68443.0,0.0002]
[1729380844801,0.04113129,68444.0,68443.0,0.0002]
[1729380845216,0.0004,68448.0,68443.0,0.2938345]
[1729380845491,0.0004,68448.0,68443.0,0.2207775]
[1729380846291,0.0004,68448.0,68447.0,0.073052]
[1729380846690,0.0004,68448.0,68447.0,0.29294805]
[1729380846895,0.3608,68459.0,68455.0,0.073044]
[1729380847088,0.0416963,68457.0,68455.0,0.073044]
[1729380847288,0.0416963,68456.0,68455.0,0.073044]
[1729380847496,0.3608,68459.0,68455.0,0.073044]
[1729380847700,0.04177503,68457.0,68455.0,0.073044]
[1729380847894,0.3608,68459.0,68455.0,0.073044]
[1729380848088,0.04177425,68457.0,68455.0,0.073044]
[1729380848290,0.3608,68459.0,68455.0,0.073044]
[1729380848495,0.3608,68459.0,68457.0,0.0002]
[1729380848707,0.04415238,68458.0,68457.0,0.0002]
[1729380849403,0.04413456,68458.0,68457.0,0.0002]
[1729380849603,0.00239194,68458.0,68457.0,0.0002]
[1729380851897,0.00239194,68458.0,68455.0,0.065244]
[1729380852304,0.07543294,68458.0,68455.0,0.065244]
[1729380856294,0.07543294,68458.0,68452.0,0.02234589]
[1729380856295,0.00239194,68458.0,68457.0,0.073042]
[1729380856601,0.00239194,68458.0,68453.0,0.21906002]
[1729380857105,0.00239194,68458.0,68452.0,0.073046]
[1729380857292,0.0002,68458.0,68453.0,0.21895958]
[1729380857499,0.0002,68458.0,68453.0,0.29200458]
[1729380857708,0.0002,68458.0,68453.0,0.073045]
[1729380857907,0.0002,68458.0,68454.0,0.21895958]
[1729380858205,0.0002,68458.0,68455.0,0.073043]
[1729380858607,0.0002,68458.0,68456.0,0.22034524]
[1729380864800,0.0002,68458.0,68457.0,0.073042]
[1729380865308,0.0002,68458.0,68457.0,0.29334223]
[1729380867218,0.0002,68458.0,68457.0,0.28534223]
[1729380873721,0.04213175,68458.0,68457.0,0.28534223]
[1729380875234,0.0002,68458.0,68457.0,0.28534223]
[1729380875412,0.04214977,68458.0,68457.0,0.28534223]
[1729380876915,0.04214977,68458.0,68457.0,0.065042]
[1729380877614,0.04214977,68458.0,68452.0,0.3608]
[1729380877615,0.073042,68457.0,68452.0,0.073046]
[1729380877815,0.3608,68453.0,68452.0,0.073046]
[1729380879406,0.04177378,68453.0,68452.0,0.073046]
[1729380881813,0.105143,68456.0,68454.0,0.073044]
[1729380882015,0.04170307,68455.0,68454.0,0.073044]
[1729380882215,0.105143,68456.0,68454.0,0.073044]
[1729380882518,0.105143,68456.0,68455.0,0.065044]
[1729380882729,0.105143,68456.0,68455.0,0.065244]
[1729380883426,0.0321,68456.0,68455.0,0.065244]
[1729380886329,0.105143,68456.0,68447.0,0.04378486]
[1729380886628,0.0002,68454.0,68452.0,0.073046]
[1729380887211,0.0002,68454.0,68453.0,0.073046]
[1729380891229,0.04185006,68454.0,68453.0,0.073046]
[1729380892521,0.08332927,68454.0,68453.0,0.073046]
[1729380892724,0.04167921,68454.0,68453.0,0.073046]
[1729380896735,0.40247921,68454.0,68453.0,0.073046]
[1729380896937,0.4503657,68454.0,68453.0,0.073046]
[1729380897434,0.08932835,68454.0,68453.0,0.073046]
[1729380897632,0.45012835,68454.0,68453.0,0.073046]
[1729380897831,0.45012835,68454.0,68453.0,0.065046]
[1729380901834,0.45012835,68454.0,68448.0,0.073051]
[1729380901835,0.073047,68452.0,68448.0,0.073051]
[1729380902039,0.04124314,68451.0,68444.0,0.073055]
[1729380902238,0.3608,68445.0,68444.0,0.073055]
[1729380902538,0.45136,68445.0,68444.0,0.073055]
[1729380903738,0.4922023,68445.0,68444.0,0.073055]
[1729380904033,0.45136,68445.0,68444.0,0.073055]
[1729380905142,0.47370387,68445.0,68444.0,0.073055]
[1729380907538,0.45136,68445.0,68444.0,0.073055]
[1729380908038,0.09056,68445.0,68444.0,0.073055]
[1729380908728,0.09056,68445.0,68443.0,0.0002]
[1729380908935,0.163615,68445.0,68443.0,0.0002]
[1729380909134,0.0638,68444.0,68443.0,0.0002]
[1729380910244,0.0638,68444.0,68442.0,0.07524952]
[1729380910245,0.073057,68443.0,68442.0,0.00219152]
[1729380910437,0.073057,68443.0,68427.0,0.0584186]
[1729380910438,0.47913053,68443.0,68418.0,0.3608]
[1729380910631,1.0246,68444.0,68418.0,0.3608]
[1729380910632,0.361,68425.0,68423.0,0.073078]
[1729380911528,0.361,68425.0,68424.0,0.073077]
[1729380911836,0.361,68425.0,68424.0,0.29260008]
[1729380912240,0.361,68425.0,68424.0,0.073077]
[1729380912441,0.361,68425.0,68424.0,0.291924]
[1729380913343,0.361,68425.0,68424.0,0.065077]
[1729380913834,0.0002,68425.0,68424.0,0.065077]
[1729380917148,0.0002,68425.0,68421.0,0.07308]
[1729380917149,0.073276,68425.0,68421.0,0.07308]
[1729380917543,0.073276,68425.0,68418.0,0.3608]
[1729380917739,0.073276,68425.0,68422.0,0.073079]
[1729380917940,0.073476,68425.0,68422.0,0.073079]
[1729380919753,0.073078,68423.0,68422.0,0.073079]
[1729380923256,0.073081,68421.0,68418.0,0.3608]
[1729380923554,0.073081,68421.0,68419.0,0.073082]
[1729380924052,0.073093,68409.0,68406.0,0.04378486]
[1729380924254,0.073093,68409.0,68403.0,0.073099]
[1729380924255,0.3608,68409.0,68403.0,0.073099]
[1729380924450,0.3608,68409.0,68401.0,0.0021931]
[1729380924451,0.0625,68408.0,68401.0,0.0021931]
[1729380925052,0.0731,68402.0,68401.0,0.0021931]
[1729380925647,0.4339,68402.0,68401.0,0.0021931]
[1729380926350,0.4339,68402.0,68386.0,0.3608]
[1729380926351,0.3608,68402.0,68393.0,0.07311]